[Event "*** SCC Grand Prix: Titled Tuesday Blitz"]
[Site "Chess.com"]
[Date "2020.10.13"]
[Round "2"]
[White "Indianlad"]
[Black "Stouuf"]
[Result "1-0"]
[WhiteElo "2918"]
[BlackElo "2589"]
[TimeControl "180+1"]
[EndTime "10:16:37 PDT"]
[Termination "Indianlad won by resignation"]

1. b3 {[%clk 0:03:00.7]} 1... d5 {[%clk 0:02:56.8]} 2. Bb2 {[%clk 0:03:00.9]}
2... Bg4 {[%clk 0:02:57.1]} 3. f3 {[%clk 0:03:00.5]} 3... Bh5 {[%clk 0:02:56.1]}
4. e3 {[%clk 0:02:58.4]} 4... f6 {[%clk 0:02:52.6]} 5. d4 {[%clk 0:02:58.2]}
5... e5 {[%clk 0:02:49.1]} 6. Nc3 {[%clk 0:02:49.3]} 6... Nc6 {[%clk 0:02:47.9]}
7. dxe5 {[%clk 0:02:48.4]} 7... Bf7 {[%clk 0:02:25.7]} 8. exf6 {[%clk
0:02:44.1]} 8... Nxf6 {[%clk 0:02:26.6]} 9. Qd2 {[%clk 0:02:44.3]} 9... Bc5
{[%clk 0:02:25.5]} 10. O-O-O {[%clk 0:02:44]} 10... Qe7 {[%clk 0:02:25.9]} 11.
Re1 {[%clk 0:02:37]} 11... O-O-O {[%clk 0:02:23.3]} 12. Bb5 {[%clk 0:02:36.5]}
12... Ne5 {[%clk 0:02:18]} 13. Nh3 {[%clk 0:02:28.6]} 13... c6 {[%clk
0:02:17.5]} 14. Bf1 {[%clk 0:02:26.5]} 14... Rhe8 {[%clk 0:02:17.9]} 15. Kb1
{[%clk 0:02:26.5]} 15... Kb8 {[%clk 0:02:16.2]} 16. Nf4 {[%clk 0:02:24.3]} 16...
Qc7 {[%clk 0:02:12.4]} 17. Nd3 {[%clk 0:02:21.5]} 17... Bd6 {[%clk 0:02:07.3]}
18. Nxe5 {[%clk 0:02:20.5]} 18... Bxe5 {[%clk 0:02:08.2]} 19. Bd3 {[%clk
0:02:20.9]} 19... h6 {[%clk 0:01:59.5]} 20. g4 {[%clk 0:02:17.9]} 20... Nd7
{[%clk 0:01:58.6]} 21. f4 {[%clk 0:02:16.3]} 21... Bf6 {[%clk 0:01:57.7]} 22. h4
{[%clk 0:02:15.6]} 22... Nc5 {[%clk 0:01:56.2]} 23. g5 {[%clk 0:02:16.1]} 23...
hxg5 {[%clk 0:01:56.5]} 24. hxg5 {[%clk 0:02:17]} 24... Be7 {[%clk 0:01:55.4]}
25. Rh7 {[%clk 0:02:15.7]} 25... Bf8 {[%clk 0:01:55.7]} 26. Reh1 {[%clk
0:02:14]} 26... Ne4 {[%clk 0:01:49.7]} 27. Bxe4 {[%clk 0:02:12.4]} 27... dxe4
{[%clk 0:01:50.1]} 28. Qe2 {[%clk 0:02:09.2]} 28... Bg6 {[%clk 0:01:49.6]} 29.
Rh8 {[%clk 0:02:09.2]} 29... Qa5 {[%clk 0:01:40.1]} 30. Rd1 {[%clk 0:02:00.4]}
30... Rxd1+ {[%clk 0:01:27.3]} 31. Nxd1 {[%clk 0:01:57.6]} 31... Qd8 {[%clk
0:01:16.4]} 32. Nf2 {[%clk 0:01:55.8]} 32... Bf5 {[%clk 0:01:09.3]} 33. Ng4
{[%clk 0:01:47.9]} 33... Bc5 {[%clk 0:00:42.1]} 34. Rxe8 {[%clk 0:01:46.3]}
34... Qxe8 {[%clk 0:00:43]} 35. Ne5 {[%clk 0:01:44.3]} 35... Qd8 {[%clk
0:00:38.4]} 36. a4 {[%clk 0:01:39.5]} 36... g6 {[%clk 0:00:38.1]} 37. Bc3 {[%clk
0:01:39.1]} 37... a6 {[%clk 0:00:35.9]} 38. a5 {[%clk 0:01:38.9]} 38... Ka7
{[%clk 0:00:28]} 39. Kb2 {[%clk 0:01:38.2]} 39... Qe7 {[%clk 0:00:27.3]} 40. Nc4
{[%clk 0:01:38.3]} 40... Qd7 {[%clk 0:00:23.9]} 41. Qe1 {[%clk 0:01:31.6]} 41...
Qe7 {[%clk 0:00:22.9]} 42. Be5 {[%clk 0:01:29.1]} 42... Be6 {[%clk 0:00:22.6]}
43. Qc3 {[%clk 0:01:28]} 43... Bd5 {[%clk 0:00:20.4]} 44. Bd4 {[%clk 0:01:27]}
44... Kb8 {[%clk 0:00:19.8]} 45. Bxc5 {[%clk 0:01:25]} 45... Qxc5 {[%clk
0:00:20.7]} 46. Ne5 {[%clk 0:01:25.7]} 46... Qd6 {[%clk 0:00:18.5]} 47. Qd4
{[%clk 0:01:24.8]} 47... Kc8 {[%clk 0:00:17.3]} 48. c4 {[%clk 0:01:23.1]} 1-0

[Event "*** SCC Grand Prix: Titled Tuesday Blitz"]
[Site "Chess.com"]
[Date "2020.10.13"]
[Round "2"]
[White "cholzan"]
[Black "Baby_Legs"]
[Result "0-1"]
[WhiteElo "2446"]
[BlackElo "2700"]
[TimeControl "180+1"]
[EndTime "10:16:37 PDT"]
[Termination "Baby_Legs won by resignation"]

1. d4 {[%clk 0:03:00.9]} 1... Nf6 {[%clk 0:02:59.5]} 2. c4 {[%clk 0:03:00.3]}
2... e6 {[%clk 0:03:00.1]} 3. Nc3 {[%clk 0:02:59.6]} 3... Bb4 {[%clk 0:03:00.2]}
4. e3 {[%clk 0:02:58.2]} 4... O-O {[%clk 0:02:59.8]} 5. Ne2 {[%clk 0:02:58.3]}
5... c6 {[%clk 0:02:58.5]} 6. a3 {[%clk 0:02:58.4]} 6... Ba5 {[%clk 0:02:58.8]}
7. b4 {[%clk 0:02:58.8]} 7... Bc7 {[%clk 0:02:58.4]} 8. Ng3 {[%clk 0:02:55.9]}
8... d5 {[%clk 0:02:58.4]} 9. Bb2 {[%clk 0:02:51.7]} 9... Nbd7 {[%clk
0:02:49.6]} 10. cxd5 {[%clk 0:02:49.7]} 10... exd5 {[%clk 0:02:48.3]} 11. Bd3
{[%clk 0:02:49.6]} 11... Re8 {[%clk 0:02:46.3]} 12. O-O {[%clk 0:02:49]} 12...
g6 {[%clk 0:02:34.7]} 13. Qc2 {[%clk 0:02:47]} 13... Nb6 {[%clk 0:01:48.7]} 14.
b5 {[%clk 0:02:43.6]} 14... Ng4 {[%clk 0:01:36.8]} 15. Nce2 {[%clk 0:02:40.4]}
15... Qh4 {[%clk 0:01:29.4]} 16. h3 {[%clk 0:02:26.3]} 16... Nxe3 {[%clk
0:01:28.1]} 17. fxe3 {[%clk 0:02:26.2]} 17... Bxg3 {[%clk 0:01:27.8]} 18. Nxg3
{[%clk 0:02:25.9]} 18... Qxg3 {[%clk 0:01:28.7]} 19. Rf3 {[%clk 0:02:25.9]}
19... Qd6 {[%clk 0:01:24.4]} 20. Raf1 {[%clk 0:02:19.7]} 20... Be6 {[%clk
0:01:23.9]} 21. a4 {[%clk 0:02:18.2]} 21... Rac8 {[%clk 0:01:23.3]} 22. a5
{[%clk 0:02:17]} 22... cxb5 {[%clk 0:01:21.7]} 23. Qb3 {[%clk 0:02:17.1]} 23...
Nc4 {[%clk 0:01:21.8]} 24. Bxc4 {[%clk 0:02:10]} 24... bxc4 {[%clk 0:01:18]} 25.
Qxb7 {[%clk 0:02:05]} 25... Rb8 {[%clk 0:01:17.8]} 26. Qxa7 {[%clk 0:02:05]}
26... Re7 {[%clk 0:01:01.1]} 27. Ba3 {[%clk 0:02:02]} 27... Rxa7 {[%clk
0:01:00.7]} 28. Bxd6 {[%clk 0:02:01.3]} 28... Rb5 {[%clk 0:00:55.8]} 29. R3f2
{[%clk 0:01:38.7]} 29... Raxa5 {[%clk 0:00:54.6]} 30. Re1 {[%clk 0:01:29.4]}
30... Bf5 {[%clk 0:00:52.6]} 31. g4 {[%clk 0:01:29.3]} 31... Be4 {[%clk
0:00:52.3]} 32. Ref1 {[%clk 0:01:29.5]} 32... Ra7 {[%clk 0:00:49.4]} 33. Be5
{[%clk 0:01:26.3]} 33... h6 {[%clk 0:00:45.7]} 34. h4 {[%clk 0:01:23.6]} 34...
Rb6 {[%clk 0:00:44]} 35. h5 {[%clk 0:01:23.7]} 35... gxh5 {[%clk 0:00:40]} 36.
Rf6 {[%clk 0:01:17.3]} 36... Rxf6 {[%clk 0:00:39.2]} 37. Rxf6 {[%clk 0:01:18.2]}
37... Kh7 {[%clk 0:00:28.1]} 38. gxh5 {[%clk 0:01:15.3]} 38... c3 {[%clk
0:00:27.9]} 39. Rc6 {[%clk 0:01:14]} 39... c2 {[%clk 0:00:28]} 40. Kf2 {[%clk
0:01:14.2]} 40... Ra1 {[%clk 0:00:28]} 41. Rc7 {[%clk 0:01:13.3]} 41... c1=Q
{[%clk 0:00:23.4]} 0-1

[Event "*** SCC Grand Prix: Titled Tuesday Blitz"]
[Site "Chess.com"]
[Date "2020.10.13"]
[Round "2"]
[White "ural58"]
[Black "GMSrinath"]
[Result "0-1"]
[WhiteElo "2348"]
[BlackElo "2819"]
[TimeControl "180+1"]
[EndTime "10:16:38 PDT"]
[Termination "GMSrinath won by checkmate"]

1. e4 {[%clk 0:00:54.6]} 1... c5 {[%clk 0:02:58]} 2. b3 {[%clk 0:00:54.7]} 2...
Nc6 {[%clk 0:02:57.7]} 3. Bb2 {[%clk 0:00:55.2]} 3... Nf6 {[%clk 0:02:58]} 4. e5
{[%clk 0:00:55.1]} 4... Nd5 {[%clk 0:02:57.9]} 5. Nf3 {[%clk 0:00:55.7]} 5...
Nc7 {[%clk 0:02:58.5]} 6. Ng5 {[%clk 0:00:55.4]} 6... h6 {[%clk 0:02:52.4]} 7.
Qh5 {[%clk 0:00:54.7]} 7... g6 {[%clk 0:02:51.2]} 8. Qh4 {[%clk 0:00:53.9]} 8...
Bg7 {[%clk 0:02:50.9]} 9. Ne4 {[%clk 0:00:52.5]} 9... Nxe5 {[%clk 0:02:48]} 10.
Nbc3 {[%clk 0:00:48.9]} 10... d6 {[%clk 0:02:43.7]} 11. O-O-O {[%clk 0:00:48.3]}
11... O-O {[%clk 0:02:36.3]} 12. f4 {[%clk 0:00:48]} 12... Nc6 {[%clk
0:02:35.8]} 13. g4 {[%clk 0:00:46.9]} 13... a5 {[%clk 0:02:29.1]} 14. a4 {[%clk
0:00:45.7]} 14... Nd4 {[%clk 0:02:28.8]} 15. Bd3 {[%clk 0:00:43.3]} 15... b5
{[%clk 0:02:24.5]} 16. f5 {[%clk 0:00:34.3]} 16... bxa4 {[%clk 0:02:21.6]} 17.
Nxa4 {[%clk 0:00:33.7]} 17... Ba6 {[%clk 0:02:13.3]} 18. Bxa6 {[%clk 0:00:31.4]}
18... Nxa6 {[%clk 0:02:13.2]} 19. fxg6 {[%clk 0:00:32.3]} 19... fxg6 {[%clk
0:02:13.7]} 20. g5 {[%clk 0:00:31.2]} 20... h5 {[%clk 0:02:13.7]} 21. Rhe1
{[%clk 0:00:31]} 21... Nb4 {[%clk 0:02:02.8]} 22. Bxd4 {[%clk 0:00:27.5]} 22...
cxd4 {[%clk 0:02:02.8]} 23. Kb1 {[%clk 0:00:25.2]} 23... Rb8 {[%clk 0:01:51]}
24. Qg3 {[%clk 0:00:23.6]} 24... d3 {[%clk 0:01:50.6]} 25. c3 {[%clk 0:00:22.6]}
25... Nc2 {[%clk 0:01:50.7]} 26. Ka2 {[%clk 0:00:18.9]} 26... Nxe1 {[%clk
0:01:49.3]} 27. Rxe1 {[%clk 0:00:18.8]} 27... Qe8 {[%clk 0:01:36.6]} 28. Qxd3
{[%clk 0:00:18.4]} 28... Qf7 {[%clk 0:01:36.9]} 29. c4 {[%clk 0:00:18.2]} 29...
Qf5 {[%clk 0:01:36.5]} 30. Nac3 {[%clk 0:00:16.8]} 30... Qe5 {[%clk 0:01:32.7]}
31. Rb1 {[%clk 0:00:15.8]} 31... Kh7 {[%clk 0:01:29.5]} 32. h4 {[%clk
0:00:15.1]} 32... Rf4 {[%clk 0:01:28.4]} 33. Ka3 {[%clk 0:00:12.3]} 33... Rxh4
{[%clk 0:01:25.6]} 34. c5 {[%clk 0:00:08.4]} 34... dxc5 {[%clk 0:01:24.4]} 35.
Qd7 {[%clk 0:00:07.1]} 35... Rxe4 {[%clk 0:01:23]} 36. Nxe4 {[%clk 0:00:06.8]}
36... Qxe4 {[%clk 0:01:23.9]} 37. d3 {[%clk 0:00:06.7]} 37... Qb4+ {[%clk
0:01:22.4]} 38. Ka2 {[%clk 0:00:06.3]} 38... Qd2+ {[%clk 0:01:23]} 39. Ka3
{[%clk 0:00:06.4]} 39... a4 {[%clk 0:01:23.7]} 40. Qxa4 {[%clk 0:00:05.3]} 40...
Qc3 {[%clk 0:01:19.2]} 41. Qa7 {[%clk 0:00:05.1]} 41... Rb5 {[%clk 0:01:17.5]}
42. Ka4 {[%clk 0:00:03.3]} 42... Qb4# {[%clk 0:01:17.2]} 0-1

[Event "*** SCC Grand Prix: Titled Tuesday Blitz"]
[Site "Chess.com"]
[Date "2020.10.13"]
[Round "2"]
[White "Lenyas66"]
[Black "GrigorGrigorov"]
[Result "0-1"]
[WhiteElo "2347"]
[BlackElo "2804"]
[TimeControl "180+1"]
[EndTime "10:16:39 PDT"]
[Termination "GrigorGrigorov won by resignation"]

1. d4 {[%clk 0:03:00.9]} 1... Nf6 {[%clk 0:02:58.7]} 2. Bg5 {[%clk 0:03:00.7]}
2... e6 {[%clk 0:02:57.4]} 3. e4 {[%clk 0:03:00.4]} 3... h6 {[%clk 0:02:57.7]}
4. Bxf6 {[%clk 0:03:00.7]} 4... Qxf6 {[%clk 0:02:58.4]} 5. Nf3 {[%clk
0:03:00.9]} 5... d6 {[%clk 0:02:58]} 6. Nbd2 {[%clk 0:02:59.7]} 6... Nd7 {[%clk
0:02:51.6]} 7. c3 {[%clk 0:02:59]} 7... g6 {[%clk 0:02:49.9]} 8. Bd3 {[%clk
0:02:52.6]} 8... Bg7 {[%clk 0:02:49.9]} 9. O-O {[%clk 0:02:52.4]} 9... O-O
{[%clk 0:02:48.4]} 10. a4 {[%clk 0:02:46.2]} 10... a5 {[%clk 0:02:43.8]} 11. Re1
{[%clk 0:02:43.4]} 11... e5 {[%clk 0:02:43.4]} 12. Nc4 {[%clk 0:02:35.5]} 12...
Qe7 {[%clk 0:02:42.7]} 13. Qb3 {[%clk 0:02:32]} 13... Kh7 {[%clk 0:02:23.9]} 14.
Rad1 {[%clk 0:02:29.4]} 14... b6 {[%clk 0:02:15.7]} 15. Ne3 {[%clk 0:02:26]}
15... Bb7 {[%clk 0:02:09.2]} 16. dxe5 {[%clk 0:02:03.8]} 16... Nxe5 {[%clk
0:02:02.8]} 17. Nxe5 {[%clk 0:02:03.2]} 17... Bxe5 {[%clk 0:02:02.4]} 18. Nd5
{[%clk 0:01:58.6]} 18... Qd8 {[%clk 0:01:47.6]} 19. Bc4 {[%clk 0:01:49.8]} 19...
Bg7 {[%clk 0:01:28.4]} 20. f4 {[%clk 0:01:46.9]} 20... Re8 {[%clk 0:01:16.5]}
21. e5 {[%clk 0:01:44.9]} 21... Qh4 {[%clk 0:00:53.4]} 22. Nxc7 {[%clk 0:01:36]}
22... Qxf4 {[%clk 0:00:44.9]} 23. Bxf7 {[%clk 0:01:10.3]} 23... Rxe5 {[%clk
0:00:41.7]} 24. Nxa8 {[%clk 0:01:06.6]} 24... Rxe1+ {[%clk 0:00:21.1]} 25. Rxe1
{[%clk 0:01:05.2]} 25... Qd2 {[%clk 0:00:21.4]} 0-1

[Event "*** SCC Grand Prix: Titled Tuesday Blitz"]
[Site "Chess.com"]
[Date "2020.10.13"]
[Round "2"]
[White "ama18"]
[Black "Jabberwockiez"]
[Result "1-0"]
[WhiteElo "2451"]
[BlackElo "2228"]
[TimeControl "180+1"]
[EndTime "10:16:40 PDT"]
[Termination "ama18 won by checkmate"]

1. e4 {[%clk 0:03:00.9]} 1... c5 {[%clk 0:02:59.7]} 2. Nf3 {[%clk 0:03:00.6]}
2... d6 {[%clk 0:03:00.2]} 3. d4 {[%clk 0:03:01.1]} 3... cxd4 {[%clk 0:03:01.1]}
4. Nxd4 {[%clk 0:03:02]} 4... Nf6 {[%clk 0:03:01.8]} 5. f3 {[%clk 0:03:02.5]}
5... Nc6 {[%clk 0:03:02.1]} 6. c4 {[%clk 0:03:02.2]} 6... e5 {[%clk 0:03:02.5]}
7. Nc2 {[%clk 0:03:01.1]} 7... a5 {[%clk 0:03:02.5]} 8. Nc3 {[%clk 0:03:01]}
8... a4 {[%clk 0:03:02.4]} 9. Ne3 {[%clk 0:03:01.5]} 9... Qa5 {[%clk 0:03:00.3]}
10. Bd2 {[%clk 0:03:00.9]} 10... Qb6 {[%clk 0:02:45.4]} 11. Ned5 {[%clk
0:03:00.3]} 11... Nxd5 {[%clk 0:02:43.1]} 12. Nxd5 {[%clk 0:03:01.2]} 12... Qd8
{[%clk 0:02:37.1]} 13. Be3 {[%clk 0:03:00.4]} 13... Qa5+ {[%clk 0:02:29.1]} 14.
Kf2 {[%clk 0:03:00.1]} 14... Ra6 {[%clk 0:01:41.9]} 15. Rb1 {[%clk 0:02:50.3]}
15... Be6 {[%clk 0:01:39.3]} 16. Be2 {[%clk 0:02:41.4]} 16... Be7 {[%clk
0:01:31.1]} 17. b4 {[%clk 0:02:40.5]} 17... axb3 {[%clk 0:01:29.4]} 18. axb3
{[%clk 0:02:41.4]} 18... O-O {[%clk 0:01:24.6]} 19. b4 {[%clk 0:02:38.2]} 19...
Qa2 {[%clk 0:01:01.2]} 20. b5 {[%clk 0:02:34.6]} 20... Bxd5 {[%clk 0:01:00.5]}
21. cxd5 {[%clk 0:02:10.7]} 21... Ra3 {[%clk 0:00:43.6]} 22. bxc6 {[%clk
0:02:01.4]} 22... bxc6 {[%clk 0:00:36.7]} 23. Ra1 {[%clk 0:01:59]} 23... Qxa1
{[%clk 0:00:26.8]} 24. Qxa1 {[%clk 0:01:59.9]} 24... Rxa1 {[%clk 0:00:27.1]} 25.
Rxa1 {[%clk 0:01:59.6]} 25... cxd5 {[%clk 0:00:24.6]} 26. exd5 {[%clk
0:02:00.5]} 26... f5 {[%clk 0:00:24.9]} 27. Ra7 {[%clk 0:01:58.4]} 27... Re8
{[%clk 0:00:23.9]} 28. Bb5 {[%clk 0:01:55.7]} 28... Rb8 {[%clk 0:00:23.8]} 29.
Bd7 {[%clk 0:01:48.1]} 29... f4 {[%clk 0:00:20.1]} 30. Be6+ {[%clk 0:01:47.6]}
30... Kf8 {[%clk 0:00:19.6]} 31. Bd2 {[%clk 0:01:46]} 31... Rb2 {[%clk
0:00:19.5]} 32. Ra8+ {[%clk 0:01:44.3]} 32... Bd8 {[%clk 0:00:16.6]} 33. Rxd8+
{[%clk 0:01:44.2]} 33... Ke7 {[%clk 0:00:16.8]} 34. Rd7+ {[%clk 0:01:45.1]}
34... Kf6 {[%clk 0:00:16.5]} 35. Ke2 {[%clk 0:01:45.5]} 35... h5 {[%clk
0:00:13.4]} 36. h4 {[%clk 0:01:43.2]} 36... g5 {[%clk 0:00:10.2]} 37. hxg5+
{[%clk 0:01:41.3]} 37... Kxg5 {[%clk 0:00:11.1]} 38. Rxd6 {[%clk 0:01:42]} 38...
e4 {[%clk 0:00:10.8]} 39. fxe4 {[%clk 0:01:41.7]} 39... Kh4 {[%clk 0:00:10.6]}
40. Rd7 {[%clk 0:01:40.5]} 40... Kg3 {[%clk 0:00:08.4]} 41. Rg7+ {[%clk
0:01:40.4]} 41... Kh2 {[%clk 0:00:08.7]} 42. d6 {[%clk 0:01:40.5]} 42... h4
{[%clk 0:00:08.6]} 43. d7 {[%clk 0:01:40]} 43... Rb8 {[%clk 0:00:07.2]} 44.
Bxf4+ {[%clk 0:01:39]} 44... Kg1 {[%clk 0:00:07.6]} 45. Bxb8 {[%clk 0:01:37.5]}
45... h3 {[%clk 0:00:07.5]} 46. gxh3+ {[%clk 0:01:37.7]} 46... Kh1 {[%clk
0:00:08]} 47. Rh7 {[%clk 0:01:34.1]} 47... Kg1 {[%clk 0:00:06.3]} 48. d8=Q
{[%clk 0:01:33.9]} 48... Kh1 {[%clk 0:00:07.2]} 49. Qd1+ {[%clk 0:01:32.7]}
49... Kg2 {[%clk 0:00:07.2]} 50. Qf1# {[%clk 0:01:33.6]} 1-0

[Event "*** SCC Grand Prix: Titled Tuesday Blitz"]
[Site "Chess.com"]
[Date "2020.10.13"]
[Round "2"]
[White "Infernal_XaM"]
[Black "MatyChess1"]
[Result "1-0"]
[WhiteElo "2880"]
[BlackElo "2571"]
[TimeControl "180+1"]
[EndTime "10:16:41 PDT"]
[Termination "Infernal_XaM won on time"]

1. d4 {[%clk 0:03:00.9]} 1... Nf6 {[%clk 0:01:15.6]} 2. c4 {[%clk 0:02:41.1]}
2... e6 {[%clk 0:01:15.5]} 3. Nc3 {[%clk 0:02:40.8]} 3... Bb4 {[%clk 0:01:15.5]}
4. Bd2 {[%clk 0:02:40.6]} 4... O-O {[%clk 0:01:14.8]} 5. Nf3 {[%clk 0:02:39]}
5... d5 {[%clk 0:01:14.5]} 6. e3 {[%clk 0:02:39.1]} 6... b6 {[%clk 0:01:14.3]}
7. cxd5 {[%clk 0:02:38.3]} 7... exd5 {[%clk 0:01:14.2]} 8. Bd3 {[%clk
0:02:38.5]} 8... c5 {[%clk 0:01:13.8]} 9. O-O {[%clk 0:02:38.2]} 9... Nc6 {[%clk
0:01:10.6]} 10. Ne5 {[%clk 0:02:38]} 10... Bb7 {[%clk 0:01:09.4]} 11. a3 {[%clk
0:02:24.9]} 11... cxd4 {[%clk 0:01:04.1]} 12. Nxc6 {[%clk 0:02:22.3]} 12... Bxc6
{[%clk 0:01:05]} 13. axb4 {[%clk 0:02:22.7]} 13... dxc3 {[%clk 0:01:05.3]} 14.
Bxc3 {[%clk 0:02:23.6]} 14... Ne4 {[%clk 0:01:05.7]} 15. Bd4 {[%clk 0:02:23.2]}
15... Qh4 {[%clk 0:01:02.6]} 16. Qe2 {[%clk 0:02:19.2]} 16... Rfe8 {[%clk
0:01:01.6]} 17. Ra3 {[%clk 0:02:18.3]} 17... Re6 {[%clk 0:01:00.6]} 18. Rfa1
{[%clk 0:02:07.4]} 18... Rh6 {[%clk 0:00:59]} 19. h3 {[%clk 0:02:07.7]} 19...
Rg6 {[%clk 0:00:58.3]} 20. Bxe4 {[%clk 0:01:55.3]} 20... dxe4 {[%clk 0:00:54.8]}
21. Kh1 {[%clk 0:01:44.1]} 21... h6 {[%clk 0:00:42.1]} 22. Rxa7 {[%clk
0:01:42.3]} 22... Rxa7 {[%clk 0:00:33]} 23. Rxa7 {[%clk 0:01:43.2]} 23... Qg5
{[%clk 0:00:28.7]} 24. Qg4 {[%clk 0:01:35.4]} 24... Qb5 {[%clk 0:00:23.8]} 25.
Qd1 {[%clk 0:01:30.4]} 25... Qg5 {[%clk 0:00:23.5]} 26. Qg1 {[%clk 0:01:17.6]}
26... Bb5 {[%clk 0:00:23.7]} 27. Rb7 {[%clk 0:01:06.2]} 27... Qd8 {[%clk
0:00:09]} 28. Qh2 {[%clk 0:01:05.5]} 28... Kh7 {[%clk 0:00:08.2]} 29. Rxf7
{[%clk 0:01:01.7]} 29... Be2 {[%clk 0:00:07.3]} 30. Qf4 {[%clk 0:00:59.5]} 30...
Qc8 {[%clk 0:00:04.8]} 31. Qxe4 {[%clk 0:00:55.9]} 31... Bc4 {[%clk 0:00:03.3]}
32. Rxg7+ {[%clk 0:00:54.9]} 1-0

[Event "*** SCC Grand Prix: Titled Tuesday Blitz"]
[Site "Chess.com"]
[Date "2020.10.13"]
[Round "2"]
[White "Heineccius"]
[Black "bakki78"]
[Result "0-1"]
[WhiteElo "2518"]
[BlackElo "2760"]
[TimeControl "180+1"]
[EndTime "10:16:41 PDT"]
[Termination "bakki78 won by resignation"]

1. d4 {[%clk 0:03:00.9]} 1... Nf6 {[%clk 0:02:58.4]} 2. c4 {[%clk 0:03:00.4]}
2... g6 {[%clk 0:02:57.1]} 3. Nc3 {[%clk 0:02:59.7]} 3... Bg7 {[%clk 0:02:57.5]}
4. Nf3 {[%clk 0:02:59]} 4... O-O {[%clk 0:02:55.6]} 5. g3 {[%clk 0:02:58.8]}
5... d6 {[%clk 0:02:55.1]} 6. Bg2 {[%clk 0:02:58.7]} 6... c6 {[%clk 0:02:55.7]}
7. O-O {[%clk 0:02:56.5]} 7... Bf5 {[%clk 0:02:55.5]} 8. Ne1 {[%clk 0:02:55.1]}
8... Be6 {[%clk 0:02:54.5]} 9. d5 {[%clk 0:02:47.3]} 9... cxd5 {[%clk
0:02:54.5]} 10. cxd5 {[%clk 0:02:48.2]} 10... Bd7 {[%clk 0:02:54.4]} 11. Nd3
{[%clk 0:02:45.4]} 11... Na6 {[%clk 0:02:54.2]} 12. h3 {[%clk 0:02:37.7]} 12...
Qc8 {[%clk 0:02:51.5]} 13. Kh2 {[%clk 0:02:35.5]} 13... Qc4 {[%clk 0:02:51.1]}
14. Bd2 {[%clk 0:02:11.4]} 14... Rfc8 {[%clk 0:02:48]} 15. Qb3 {[%clk
0:01:54.3]} 15... Qxb3 {[%clk 0:02:45.6]} 16. axb3 {[%clk 0:01:55.2]} 16... Be8
{[%clk 0:02:44.8]} 17. Rfc1 {[%clk 0:01:50.9]} 17... Nd7 {[%clk 0:02:43.8]} 18.
Na4 {[%clk 0:01:21.7]} 18... Ne5 {[%clk 0:02:40.2]} 19. Nxe5 {[%clk 0:00:56.8]}
19... Bxe5 {[%clk 0:02:39.4]} 20. Bc3 {[%clk 0:00:57.3]} 20... Bg7 {[%clk
0:02:38.3]} 21. Bxg7 {[%clk 0:00:55.7]} 21... Kxg7 {[%clk 0:02:37.9]} 22. Rc3
{[%clk 0:00:50.8]} 22... Nb4 {[%clk 0:02:19.7]} 23. Rxc8 {[%clk 0:00:43.6]}
23... Rxc8 {[%clk 0:02:19]} 24. Nc3 {[%clk 0:00:44.5]} 24... a6 {[%clk
0:02:17.2]} 25. f4 {[%clk 0:00:41.1]} 25... Nc2 {[%clk 0:02:15.7]} 26. Rd1
{[%clk 0:00:36.4]} 26... b5 {[%clk 0:02:12.1]} 27. Be4 {[%clk 0:00:34.1]} 27...
Nb4 {[%clk 0:02:02.5]} 28. Ra1 {[%clk 0:00:33.9]} 28... f5 {[%clk 0:02:00.8]}
29. Bf3 {[%clk 0:00:33.8]} 29... Kf6 {[%clk 0:01:57.1]} 30. Kg2 {[%clk
0:00:33.9]} 30... h5 {[%clk 0:01:55.4]} 31. Kf2 {[%clk 0:00:33.5]} 31... Ra8
{[%clk 0:01:53.3]} 32. h4 {[%clk 0:00:29.4]} 32... a5 {[%clk 0:01:52.3]} 33. e3
{[%clk 0:00:24.6]} 33... Nd3+ {[%clk 0:01:51]} 34. Ke2 {[%clk 0:00:23.6]} 34...
Nc5 {[%clk 0:01:20.8]} 35. b4 {[%clk 0:00:22.8]} 35... Nb3 {[%clk 0:01:21.1]}
36. Ra3 {[%clk 0:00:20.5]} 36... a4 {[%clk 0:01:21.4]} 37. e4 {[%clk 0:00:18]}
37... Rc8 {[%clk 0:01:18.2]} 38. Kd3 {[%clk 0:00:16.9]} 38... Rc4 {[%clk
0:01:12.5]} 39. Be2 {[%clk 0:00:15.8]} 39... Nc1+ {[%clk 0:01:12.1]} 40. Kd2
{[%clk 0:00:15.3]} 40... Nxe2 {[%clk 0:01:12.1]} 41. Kxe2 {[%clk 0:00:16.2]}
41... Rxb4 {[%clk 0:01:10]} 42. Ke3 {[%clk 0:00:17.1]} 42... Rxb2 {[%clk
0:01:08.6]} 43. Kd4 {[%clk 0:00:16.9]} 43... b4 {[%clk 0:01:06.1]} 44. e5+
{[%clk 0:00:16.7]} 44... Kg7 {[%clk 0:01:06.1]} 0-1

[Event "*** SCC Grand Prix: Titled Tuesday Blitz"]
[Site "Chess.com"]
[Date "2020.10.13"]
[Round "2"]
[White "Fighter008"]
[Black "gixfantastix"]
[Result "1-0"]
[WhiteElo "2634"]
[BlackElo "2088"]
[TimeControl "180+1"]
[EndTime "10:16:41 PDT"]
[Termination "Fighter008 won by checkmate"]

1. e4 {[%clk 0:03:00.9]} 1... c6 {[%clk 0:02:59.8]} 2. Nc3 {[%clk 0:03:00.5]}
2... d5 {[%clk 0:03:00.7]} 3. Nf3 {[%clk 0:03:00.3]} 3... dxe4 {[%clk
0:02:52.3]} 4. Nxe4 {[%clk 0:03:01.2]} 4... Bf5 {[%clk 0:02:49.3]} 5. Ng3 {[%clk
0:02:53.3]} 5... Bg6 {[%clk 0:02:49.3]} 6. h4 {[%clk 0:02:45.4]} 6... h6 {[%clk
0:02:48.7]} 7. Ne5 {[%clk 0:02:45]} 7... Bh7 {[%clk 0:02:41.1]} 8. Bc4 {[%clk
0:02:44.6]} 8... e6 {[%clk 0:02:38.7]} 9. Qh5 {[%clk 0:02:36]} 9... Qe7 {[%clk
0:01:46.5]} 10. d4 {[%clk 0:02:23.1]} 10... Nf6 {[%clk 0:01:46.1]} 11. Qe2
{[%clk 0:02:22.1]} 11... Nbd7 {[%clk 0:01:45]} 12. Bf4 {[%clk 0:02:21.5]} 12...
Nd5 {[%clk 0:01:35.8]} 13. Bxd5 {[%clk 0:02:05.8]} 13... exd5 {[%clk 0:01:28.4]}
14. O-O-O {[%clk 0:02:03.5]} 14... f6 {[%clk 0:01:17.4]} 15. Nxd7 {[%clk
0:02:00.9]} 15... Kxd7 {[%clk 0:01:11.2]} 16. Qg4+ {[%clk 0:01:58.7]} 16... Qe6
{[%clk 0:01:07.9]} 17. Qf3 {[%clk 0:01:58.5]} 17... Re8 {[%clk 0:01:02.8]} 18.
Qc3 {[%clk 0:01:46.5]} 18... Bd6 {[%clk 0:00:56.7]} 19. Bxd6 {[%clk 0:01:42.7]}
19... Qxd6 {[%clk 0:00:57.6]} 20. Qf3 {[%clk 0:01:40.1]} 20... Re7 {[%clk
0:00:47.8]} 21. Rhe1 {[%clk 0:01:36.5]} 21... Rhe8 {[%clk 0:00:46.9]} 22. Rxe7+
{[%clk 0:01:32.4]} 22... Rxe7 {[%clk 0:00:47.8]} 23. h5 {[%clk 0:01:23.1]} 23...
Kc7 {[%clk 0:00:26.7]} 24. a3 {[%clk 0:01:21.2]} 24... a5 {[%clk 0:00:25.4]} 25.
Kd2 {[%clk 0:01:14.3]} 25... Qe6 {[%clk 0:00:22]} 26. Kc1 {[%clk 0:01:09.2]}
26... Kb6 {[%clk 0:00:20.5]} 27. Qc3 {[%clk 0:01:06.9]} 27... Ka6 {[%clk
0:00:20.2]} 28. b3 {[%clk 0:01:02.4]} 28... Qd6 {[%clk 0:00:19.9]} 29. Kb2
{[%clk 0:01:02]} 29... Qf4 {[%clk 0:00:19.9]} 30. Qc5 {[%clk 0:00:52]} 30...
Qxf2 {[%clk 0:00:16.7]} 31. b4 {[%clk 0:00:44.5]} 31... Re2 {[%clk 0:00:13.8]}
32. Qxa5# {[%clk 0:00:41.8]} 1-0